{"text_format":"1","workbook":"xlsx","n_sheets":4,"sheets":["記入用シート（要入力）","経歴書（入力不要）","顔写真（入力不要）","政党"],"not_rendered":{"charts":0,"images":0,"macros":1,"external_links":0,"defined_names":2,"comments":0,"pivot_tables":0},"unopened":[],"bounds":{"document_bytes":16777216,"sheet_cells":100000,"rows_first":2000,"rows_last":500,"rows_between":2000,"halvings":0,"cell_chars":16384,"cell_head_chars":4096},"cells_cut":0,"cells_raw":0,"read":"whole","date_system":"1900"}

{"sheet":"記入用シート（要入力）","index":0,"n_rows":43,"n_cols":4,"rows_kept":43,"cut":false,"hidden":false,"merged":[[40,2,40,8],[42,2,42,8],[32,0,34,0],[0,0,0,3],[2,2,2,3],[25,2,25,5],[28,2,28,3],[29,2,29,3],[30,2,30,3],[18,0,20,0],[24,0,26,0],[28,0,30,0],[4,2,5,3]]}
["記入用シート　黄色のセルにご記入ください。"]
[]
["選挙区"]
[]
["ふりがな",null,"      "]
["候補者届出政党の名称"]
[]
[null,null,"姓","名"]
["ふりがな"]
["候補者名"]
["通称を使用する場合は通称を記入してください。"]
["通称の使用は選挙長の認定が必要です。"]
[]
["性別"]
["プルダウンで選択してください"]
[null,null,"姓","名"]
["候補者本名"]
[]
["生年月日",null,null,"年"]
[null,null,null,"月"]
[null,null,null,"日"]
[]
["年齢＊選挙の期日に算定した満年齢",null,null,"才"]
[]
["連絡先","〒",null,"※ハイフンあり"]
[null,"住所"]
[null,"電話番号",null,"※ハイフンあり"]
[]
["手話通訳士\n＊未定の場合は空白で可","ふりがな"]
[null,"氏名"]
[null,"連絡先（電話）"]
[]
["提出日",null,null,"年"]
[null,null,null,"月"]
[null,null,null,"日"]
[]
["放送事業者名"]
[]
[]
[null,null,"合計文字数",0]
["経歴（50字）\n＊句読点、括弧は字数に含みません。\n　　　、。・「」（）\n＊全角文字で入力してください"]
[]
["経歴（かな表記）\n＊漢字だけでなくアルファベット、数字もすべて読み方がわかるようにかなで表記してください。"]

{"sheet":"経歴書（入力不要）","index":1,"n_rows":21,"n_cols":14,"rows_kept":21,"cut":false,"hidden":false,"merged":[[2,3,2,13],[8,8,8,10],[10,5,10,13],[11,5,11,13],[4,5,4,13],[5,5,6,13],[18,3,18,14],[15,3,15,9],[7,11,8,13],[7,5,7,7],[7,8,7,10],[8,5,8,7],[14,5,14,7],[14,8,14,10],[13,5,13,13]]}
[]
[]
[null,null,null,"候補者経歴書"]
[]
[null,null,null,"選挙区",null,{"$f":"'記入用シート（要入力）'!C3&\"\"","v":""}]
[null,null,null,"ふりがな",null,{"$f":"'記入用シート（要入力）'!C5&\"\"","v":"      "}]
[null,null,null,"候補者届出政党の名称"]
[null,null,null,"ふりがな",null,{"$f":"'記入用シート（要入力）'!C9&\"\"","v":""},null,null,{"$f":"'記入用シート（要入力）'!D9&\"\"","v":""},null,null,"写真添付欄"]
[null,null,null,"氏名",null,{"$f":"'記入用シート（要入力）'!C10&\"\"","v":""},null,null,{"$f":"'記入用シート（要入力）'!D10&\"\"","v":""}]
[null,null,null,"生年月日（年齢）",null,{"$f":"'記入用シート（要入力）'!C19&\"\"","v":""},"年",{"$f":"'記入用シート（要入力）'!C20&\"\"","v":""},"月",{"$f":"'記入用シート（要入力）'!C21&\"\"","v":""},"日",{"$f":"'記入用シート（要入力）'!C23&\"\"","v":""},"歳",{"$f":"'記入用シート（要入力）'!C14&\"\"","v":""}]
[null,null,null,"主要な経歴",null,{"$f":"'記入用シート（要入力）'!C41&\"\"","v":""}]
[null,null,null,"経歴（かな表記）",null,{"$f":"'記入用シート（要入力）'!C43&\"\"","v":""}]
[null,null,null,"提出日",null,{"$f":"'記入用シート（要入力）'!C33&\"\"","v":""},"年",{"$f":"'記入用シート（要入力）'!C34&\"\"","v":""},"月",{"$f":"'記入用シート（要入力）'!C35&\"\"","v":""},"日"]
[null,null,null,"住所",null,{"$f":"'記入用シート（要入力）'!C26&\"\"","v":""}]
[null,null,null,"候補者本名",null,{"$f":"'記入用シート（要入力）'!C17&\"\"","v":""},null,null,{"$f":"'記入用シート（要入力）'!D17&\"\"","v":""}]
[null,null,null,{"$f":"'記入用シート（要入力）'!C37&\"\"","v":""},null,null,null,null,null,null,"殿"]
[]
[null,null,null,"備考"]
[null,null,null,"１、選挙区欄は「〇〇県第〇区」と記入し、公示（告示）日の午後五時までにNHKが指定する場所に提出する。\n２、候補者届出政党の名称欄には、候補者届出政党の届け出候補者のみが記入する。\n　　また、名称の字数が二十字をこえる場合は、放送用として二十字以内の略称を併記する。\n３、氏名欄には、当該選挙長の認定した通称があるときは、その通称を記載する。\n４、年齢欄には、選挙の期日により算定した満年齢を記載する。\n５、主要な経歴欄には、五十字以内で記載する。句読点、中点・括弧は字数に含めない。\n　　（かな表記）欄には、漢字、数字、アルファベットすべての読み方がわかるようにかなで記入する。\n６、あて名は、経歴放送を実施する放送事業者名を記載する。\n７、写真添付欄に写真を一枚添付する。紙の場合は、同じ写真を二枚別に提出する。\n（注意）　経歴書を提出しない候補者の経歴放送は、氏名、年齢、党派名、職業の\n　　　　　 紹介に限られます。また写真の提出のない候補者はテレビでは字幕のみの経歴放送になります。"]
[]
[null,null,"候補者又は代理人",null,null,null,null,null,null,"放送事業者"]

{"sheet":"顔写真（入力不要）","index":2,"n_rows":1,"n_cols":1,"rows_kept":1,"cut":false,"hidden":true,"merged":[[0,0,33,6]]}
["顔写真貼付\n\n（ 横４５０pixel以上 × 縦６００pixel以上 ）"]

{"sheet":"政党","index":3,"n_rows":12,"n_cols":1,"rows_kept":12,"cut":false,"hidden":true,"merged":[]}
["      "]
["\nじゆうみんしゅとう\n自由民主党\n"]
["\nりっけんみんしゅとう\n立憲民主党\n"]
["\nにっぽんいしんのかい\n日本維新の会\n"]
["\nこうめいとう\n公明党\n"]
["\nにほんきょうさんとう\n日本共産党\n"]
["\nこくみんみんしゅとう\n国民民主党\n"]
["\nれいわしんせんぐみ\nれいわ新選組\n"]
["\nきょういくむしょうかをじつげんするかい\n教育無償化を実現する会\n"]
["\nしゃかいみんしゅとう\n社会民主党\n"]
["\nさんせいとう\n参政党\n"]
["\nみんなでつくるとう\nみんなでつくる党\n"]